[Event "TUR-ch U13-18 Open 2023"]
[Site "Antalya"]
[Date "2023.01.24"]
[Round "4"]
[White "Aksu, Ata Anil"]
[Black "Gokcek, Kursat Bugra"]
[Result "0-1"]
[ECO "B23"]
[WhiteElo "1680"]
[BlackElo "2116"]
[Annotator "TA"]
[PlyCount "172"]
[EventDate "2023.01.17"]
[EventType "swiss"]
[EventCountry "TUR"]
[SourceTitle "playchess.com"]
[Source "ChessBase"]
[SourceQuality "1"]
[TimeControl "5400+30"]

{[%evp 17,172,32,43,49,58,44,46,0,0,-8,24,-3,-3,-3,-12,-18,0,0,6,0,6,0,0,0,0,0,13,13,15,14,18,13,15,20,20,10,18,-29,-24,-93,0,0,0,0,0,0,0,-13,-13,-13,-14,-14,-16,-22,-17,-18,0,-22,-23,-23,-22,-23,-19,-19,-4,-7,0,-102,-106,-140,-140,-140,-140,-140,-140,-142,-145,-140,-145,-137,-70,-77,-73,-87,0,0,0,0,0,0,0,0,0,0,0,0,0,0,0,0,0,0,0,0,0,0,0,0,0,0,0,0,0,0,0,0,0,0,0,0,0,0,0,0,0,0,0,-27999,-27999,-27999,-27999,-27999,0,-27999,-27999,-27999,-27999,-27999,0,-27999,-27999,-27999,-27999,-27999,-27999,-27999,-27999,-27988,-27999,-27999,-27999,-27988,-27999,-27990,-27999,-27997,-27999]} 1. e4 {[%emt 0:03:00]} c5 {[%emt 0:01:00]} 2. Nc3 {[%emt 0:00:30]} Nc6 {[%emt 0:02:30]} 3. f4 {[%emt 0:02:30]} g6 {[%emt 0:02:30]} 4. Nf3 {[%emt 0:00:30]} Bg7 {[%emt 0:00:30]} 5. Bb5 {[%emt 0:00:30]} d6 {[%emt 0:04:30]} 6. Bxc6+ {[%emt 0:00:30]} bxc6 {[%emt 0:00:30]} 7. O-O {[%emt 0:00:30]} Nh6 {[%emt 0:04:30]} 8. Qe1 {[%emt 0:05:30]} O-O {[%emt 0:08:30]} 9. d3 {[%emt 0:03:30]} f5 {[%emt 0:00:30]} 10. e5 {[%emt 0:00:30] B23: Closed Sicilian: Lines without g3.} Qc7 {[%emt 0:05:30]} 11. Na4 {[%emt 0:08:30]} Nf7 {[%emt 0:05:30][%cal Rd6e5,Bh6f7,Bf7d8,Bd8e6][%mdl 32]} 12. exd6 {[%emt 0:01:30]} (12. Kh1 $1 $14 {was preferrable.}) 12... exd6 $11 {[%emt 0:01:30]} 13. c4 {[%emt 0:01:30]} Bd7 {[%emt 0:09:30]} 14. Rb1 {[%emt 0:04:30]} Nd8 {[%emt 0:04:30]} 15. b3 {[%emt 0:06:30]} Ne6 {[%emt 0:01:30] [#]} 16. Qf2 $146 {[%emt 0:04:30]} ({Predecessor:} 16. g3 Rae8 17. Qd1 Nd4 18. Nxd4 cxd4 19. c5 Be6 20. cxd6 Qxd6 21. Nb2 Bd5 22. Nc4 {0-1 Blajwas,H-Byrne,R USA Annual op-ch69 1968}) 16... Qd8 {[%emt 0:05:30]} (16... Rae8 $5 {[%cal Re6d4]}) 17. g3 {[%emt 0:07:30]} Bf6 {[%emt 0:06:30]} 18. Bb2 {[%emt 0:05:30]} h6 {[%emt 0:01:30]} 19. h4 {[%emt 0:02:30]} g5 {[%emt 0:04:30]} 20. hxg5 {[%emt 0:00:00]} hxg5 {[%emt 0:03:30]} 21. Bxf6 {[%emt 0:00:00]} Rxf6 {[%emt 0:06:30]} 22. Nxg5 {[%emt 0:00:30]} Nxg5 {[%emt 0:01:42]} 23. fxg5 {[%emt 0:00:30]} Rg6 {[%emt 0:00:30]} 24. Qf4 {[%emt 0:00:30]} Qxg5 {[%emt 0:00:00]} 25. Qxg5 {[%emt 0:01:30]} Rxg5 {[%emt 0:00:00]} 26. Kg2 {[%emt 0:01:30]} Re8 {[%emt 0:01:38][%cal Of5f4]} 27. Kf3 {[%emt 0:02:30]} (27. Nc3 $142) 27... f4 {[%emt 0:02:34]} 28. Rbe1 {[%emt 0:10:30] Inhibits Re3+.} (28. gxf4 $11 {remains equal.} Bg4+ 29. Kg2) 28... fxg3 {[%emt 0:11:03]} (28... Rxg3+ $17 29. Kxf4 Rxd3) 29. Rxe8+ {[%emt 0:00:30]} Bxe8 $17 {[%emt 0:00:30][%mdl 4096] Endgame KRB-KRN} 30. Kg2 {[%emt 0:00:30]} Kg7 {[%emt 0:00:30]} 31. Rf3 {[%emt 0:00:30]} Bg6 {[%emt 0:00:30]} 32. Nb2 {[%emt 0:00:30]} Re5 {[%emt 0:00:30] Threatens to win with ...Re2+.} 33. Kxg3 {[%emt 0:00:30]} Re1 {[%emt 0:00:30]} 34. Rf2 {[%emt 0:00:30]} Rg1+ {[%emt 0:05:18]} 35. Kh2 {[%emt 0:03:30]} Rg4 {[%emt 0:01:09]} 36. Kh3 {[%emt 0:01:30]} Rg1 {[%emt 0:00:30]} 37. Kh2 {[%emt 0:00:30]} Ra1 {[%emt 0:00:30]} 38. Na4 $1 {[%emt 0:00:30]} Re1 {[%emt 0:00:00]} (38... Bxd3 39. Rd2 Bf1 40. Kg3 $11 (40. Rxd6 Rxa2+ 41. Kg3 Bxc4 $15)) 39. Nb2 {[%emt 0:02:30]} Re3 {[%emt 0:00:00]} 40. Kg1 {[%emt 0:00:30]} Re5 {[%emt 0:01:34]} 41. Kf1 {[%emt 0:01:30]} Re3 {[%emt 0:00:17]} 42. Re2 {[%emt 0:00:30]} (42. Kg1 $11 {keeps the balance.}) 42... Rxd3 $1 {[%emt 0:00:40] Black is more active.} (42... Bxd3 $6 43. Nxd3 Rxd3 44. Re7+ Kf6 45. Rc7 $11) 43. Re7+ {[%emt 0:01:37]} Kf6 {[%emt 0:00:03]} 44. Rxa7 {[%emt 0:00:49]} Rd2 {[%emt 0:00:30]} 45. Na4 {[%emt 0:00:00]} Bd3+ {[%emt 0:00:48]} 46. Ke1 {[%emt 0:00:16]} Re2+ {[%emt 0:00:23]} (46... Rxa2 47. Rc7 $17) 47. Kd1 {[%emt 0:00:25]} Rxa2 {[%emt 0:00:06] And now ...Bc2+ would win.} 48. Rc7 {[%emt 0:00:46] [#]} Bxc4 {[%emt 0:00:33]} 49. Nxc5 $1 $15 {[%emt 0:00:42]} Be2+ {[%emt 0:01:06]} 50. Kc1 {[%emt 0:00:08]} dxc5 $2 {[%emt 0:00:41][%mdl 8192]} (50... Ke5 $17 51. Re7+ Kd4) 51. Rxc6+ $17 {[%emt 0:00:30] KRB-KR} Ke5 {[%emt 0:00:30]} 52. Rxc5+ {[%emt 0:00:30]} Kd4 {[%emt 0:00:00]} 53. Rc2 {[%emt 0:00:00][%mdl 8192]} (53. Kb1 $11) 53... Ra1+ {[%emt 0:00:00]} 54. Kb2 {[%emt 0:00:17]} Re1 {[%emt 0:00:29]} 55. Rc8 $2 {[%emt 0:00:30][%mdl 8192]} (55. Ka2 $11) 55... Bf3 $2 {[%emt 0:00:00][%mdl 8192]} (55... Kd3 $11) 56. Rc4+ {[%emt 0:00:00]} Kd5 {[%emt 0:00:00]} 57. Rc3 $2 {[%emt 0:00:00][%mdl 8192]} (57. Rc2 $11) 57... Be4 {[%emt 0:00:04]} 58. Rc8 $2 {[%emt 0:00:30][%mdl 8192]} (58. Ka3 $11) 58... Re2+ $2 {[%emt 0:00:52][%mdl 8192]} (58... Rb1+ $11 59. Ka2 Rh1) 59. Ka3 {[%emt 0:00:30]} Kd4 {[%emt 0:00:00]} 60. Rc4+ $2 {[%emt 0:00:30][%mdl 8192]} (60. Kb4 $11) 60... Kd3 $2 {[%emt 0:00:27][%mdl 8192]} (60... Kd5 $11) 61. Kb4 {[%emt 0:00:30]} Bd5 $2 {[%emt 0:01:12][%mdl 8192]} (61... Kd2 $11) 62. Rc3+ {[%emt 0:00:30]} Kd4 {[%emt 0:00:00]} 63. Rh3 $2 {[%emt 0:00:00][%mdl 8192]} (63. Rc1 $11) 63... Re4 {[%emt 0:00:38]} 64. Kb5 $2 {[%emt 0:02:00][%mdl 8192]} (64. Ka3 $11) 64... Rf4 $2 {[%emt 0:00:48][%mdl 8192]} (64... Be6 $11 65. Rg3 Rh4) 65. b4 $2 {[%emt 0:00:30][%mdl 8192]} (65. Ka5 $11) 65... Bc4+ {[%emt 0:01:16]} 66. Ka4 {[%emt 0:02:04]} Rf8 $2 {[%emt 0:01:31][%mdl 8192]} (66... Bf1 $11 67. Rg3 Rf2) 67. Rh5 $2 {[%emt 0:01:28][%mdl 8192]} (67. Rh4+ $11 Kc3 68. Ka5) 67... Ra8+ {[%emt 0:00:30]} 68. Ra5 {[%emt 0:00:30]} Rb8 {[%emt 0:00:10]} 69. Rh5 $2 {[%emt 0:02:05][%mdl 8192]} (69. b5 $11) 69... Ra8+ {[%emt 0:00:30]} 70. Ra5 {[%emt 0:00:30]} Rb8 {[%emt 0:00:10]} 71. Rh5 $2 {[%emt 0:00:00][%mdl 8192]} (71. b5 $11) 71... Kc3 $2 {[%emt 0:00:10][%mdl 8192]} (71... Ra8+ $11 72. Ra5) 72. Ka3 $2 {[%emt 0:00:33][%mdl 8192] [#] Black continues to play with concentration.} (72. Rh3+ $11 Bd3 73. Rh5) 72... Ra8+ $1 {[%emt 0:01:32]} ({Worse is} 72... Rxb4 73. Rh3+ Bd3 74. Rxd3+ Kxd3 75. Kxb4 $11) 73. Ra5 {[%emt 0:00:36]} Rb8 {[%emt 0:00:30]} 74. Rh5 {[%emt 0:00:30]} Rb7 {[%emt 0:00:30]} ({Weaker is} 74... Rxb4 75. Rh3+ Bd3 76. Rxd3+ Kxd3 77. Kxb4 $11) 75. Rg5 $2 {[%emt 0:00:30][%mdl 8192] [#]} (75. Ka4 $11) 75... Ra7+ $1 {[%emt 0:00:30]} (75... Rxb4 76. Rg3+ Bd3 77. Rxd3+ Kxd3 78. Kxb4 $11) 76. Ra5 {[%emt 0:00:30]} Rb7 {[%emt 0:00:30]} 77. Rg5 {[%emt 0:00:30]} Rh7 {[%emt 0:00:30]} ({And not} 77... Rxb4 78. Rg3+ Bd3 79. Rxd3+ Kxd3 80. Kxb4 $11) 78. Rg3+ $2 {[%emt 0:00:30][%mdl 8192]} (78. Ka4 $11) 78... Bd3 {[%emt 0:00:30][%cal Rh7a7] Black mates.} 79. Rg5 {[%emt 0:00:30]} Rh1 {[%emt 0:00:30][%cal Rh1a1]} 80. Rg2 {[%emt 0:00:30]} Ra1+ {[%emt 0:00:30]} 81. Ra2 {[%emt 0:00:30]} Rb1 {[%emt 0:00:30]} 82. Rh2 {[%emt 0:00:30]} Ra1+ {[%emt 0:00:30]} 83. Ra2 {[%emt 0:00:30]} Rb1 {[%emt 0:00:30]} 84. Rh2 {[%emt 0:00:30]} Rxb4 {[%emt 0:00:30]} 85. Rh8 {[%emt 0:00:11]} Rb7 {[%emt 0:00:35][%cal Rb7a7]} 86. Ra8 {[%emt 0:00:30]} Bc4 {[%emt 0:00:10] Weighted Error Value: White=0.09 (flawless) /Black=0.08 (flawless)} 0-1

[Event "TUR-ch U13-18 Open 2023"]
[Site "Antalya"]
[Date "2023.01.24"]
[Round "4"]
[White "Ulku, Ahmet"]
[Black "Durucay, Uygar"]
[Result "0-1"]
[ECO "B22"]
[WhiteElo "1620"]
[BlackElo "1926"]
[Annotator "TA"]
[PlyCount "89"]
[EventDate "2023.01.17"]
[EventType "swiss"]
[EventCountry "TUR"]
[SourceTitle "playchess.com"]
[Source "ChessBase"]
[SourceQuality "1"]
[TimeControl "5400+30"]

{[%evp 14,89,36,33,41,16,28,14,32,14,38,2,24,8,16,-33,0,-55,-50,-66,-39,-72,-13,-21,0,-32,0,0,32,16,60,60,64,59,58,50,95,60,77,76,64,53,43,-8,60,0,0,0,0,0,0,0,0,-100,-105,-102,-119,-638,-633,-887,-852,-732,-892,-852,-853,-846,-804,-725,-598,-29975,-29976,-6079,-860,-963,-943,-29971,-29972,-5539]} 1. e4 {[%emt 0:01:00]} c5 {[%emt 0:01:00]} 2. Nf3 {[%emt 0:00:30]} e6 {[%emt 0:00:30]} 3. c3 {[%emt 0:00:30]} Nf6 {[%emt 0:00:00]} 4. e5 {[%emt 0:00:00]} Nd5 {[%emt 0:00:00]} 5. d4 {[%emt 0:00:00]} cxd4 {[%emt 0:00:30]} 6. cxd4 {[%emt 0:00:00]} b6 {[%emt 0:00:30]} 7. Bc4 {[%emt 0:01:00]} Bb7 {[%emt 0:00:30]} 8. O-O {[%emt 0:00:30]} Na6 {[%emt 0:01:30] B22: Sicilian: 2 c3.} 9. Bg5 {[%emt 0:05:30]} Be7 {[%emt 0:02:30]} 10. Bxe7 {[%emt 0:01:30]} Qxe7 {[%emt 0:00:00] The position is equal.} 11. Nbd2 {[%emt 0:04:30]} (11. Nfd2 $5 {[%cal Rd2e4]}) 11... f5 {[%emt 0:04:00] Against Ne4} 12. exf6 {[%emt 0:05:30]} gxf6 {[%emt 0:00:30] [#]} 13. Re1 $146 {[%emt 0:07:30]} ({Predecessor:} 13. Nh4 Nac7 14. Re1 O-O-O 15. Bf1 Rdg8 16. Nc4 Rg5 17. Nf3 Rg6 18. Nh4 Rg5 19. Nf3 Rg7 20. Qd2 Rhg8 21. g3 f5 22. Ne3 {½-½ Michalczak,T (2339)-Sawadkuhi,M (2259) Muensterland op 21st 2003 (5)}) 13... Nac7 {[%emt 0:03:30]} 14. Ne4 {[%emt 0:06:30]} (14. Rc1 $11 {should be considered.}) 14... O-O-O $15 {[%emt 0:01:30]} 15. Qd2 {[%emt 0:07:30]} (15. Bf1 $11) 15... Rdg8 {[%emt 0:02:30]} (15... Nb4 $5 {[%cal Rd7d5]} 16. Ng3 Bxf3 17. gxf3 Kb8 $15) 16. Rac1 {[%emt 0:05:30]} Kb8 {[%emt 0:00:30]} (16... Qg7 17. g3 $11) 17. a4 {[%emt 0:04:30]} Qg7 {[%emt 0:03:30]} ({Better is} 17... Nb4 $17 {...d5 is the strong threat.} 18. Bb3 Rg4) 18. Bf1 $1 $11 {[%emt 0:08:30]} Qg4 {[%emt 0:00:30]} 19. Ng3 {[%emt 0:03:30]} h5 {[%emt 0:03:30] [#] White must now prevent ...Nf4.} 20. Re4 {[%emt 0:07:30] Inhibits Nf4.} Qg7 {[%emt 0:01:30]} 21. Rh4 {[%emt 0:04:30]} f5 {[%emt 0:02:30]} 22. Rxh5 {[%emt 0:04:30]} (22. a5 {keeps more tension.} bxa5 23. Qxa5 d6 24. Qa3) 22... Rxh5 {[%emt 0:02:30]} 23. Nxh5 {[%emt 0:00:30]} Qg4 {[%emt 0:01:30]} 24. Ng3 {[%emt 0:01:30]} d6 {[%emt 0:00:30]} 25. Qh6 {[%emt 0:03:26]} (25. a5 {with more complications.} f4 26. axb6 axb6 27. h3) 25... Qf4 {[%emt 0:09:30]} 26. Qxf4 {[%emt 0:05:05]} (26. Qh7 {looks sharper.} Rxg3 27. Rxc7 Rxg2+ 28. Bxg2 Nxc7 29. Qg8+) 26... Nxf4 {[%emt 0:00:30]} 27. Ne1 {[%emt 0:05:38]} Ncd5 {[%emt 0:01:30]} 28. Nd3 {[%emt 0:01:24]} (28. a5 $14) 28... Ng6 {[%emt 0:00:30]} (28... Nxd3 $11 29. Bxd3 f4) 29. Re1 {[%emt 0:01:53]} (29. Ne2 $14) 29... f4 $1 {[%emt 0:00:30]} 30. Ne4 {[%emt 0:00:22]} Nh4 {[%emt 0:00:30]} 31. Kh1 {[%emt 0:00:00]} Ne3 $1 {[%emt 0:03:30][%mdl 64] [#] Discovered Attack} 32. fxe3 {[%emt 0:03:01]} ({Don't play} 32. Nxd6 Nexg2 33. Re4 (33. Rxe6 $2 {is the wrong capture.} Ne1+ 34. Re4 Bxe4+ 35. Nxe4 Nhf3 $19) 33... Bxe4 34. Nxe4 f3 $17) 32... Bxe4 {[%emt 0:00:30]} 33. Nxf4 {[%emt 0:02:54]} (33. exf4 $11 Bxg2+ 34. Bxg2 Rxg2 35. Rxe6) 33... e5 $17 {[%emt 0:00:30] Black is more active.} 34. dxe5 {[%emt 0:00:30]} dxe5 {[%emt 0:00:00]} 35. Nd3 {[%emt 0:00:14][%mdl 8192] Now White is beyond hope.} (35. Re2 $17) 35... Nxg2 $19 {[%emt 0:00:00]} 36. Nf2 {[%emt 0:00:34]} Bf3 {[%emt 0:00:00]} 37. Bxg2 {[%emt 0:00:39]} Rxg2 {[%emt 0:00:00][%cal Rg2g7]} 38. h4 {[%emt 0:00:31]} Rxf2+ {[%emt 0:00:30][%mdl 4096] Endgame KRB-KR} 39. Kg1 {[%emt 0:00:30]} Rg2+ {[%emt 0:00:00]} 40. Kf1 {[%emt 0:00:00]} Rh2 {[%emt 0:00:00][%cal Oe5e4] aiming for ...e4!} 41. b3 {[%emt 0:00:08]} Rxh4 {[%emt 0:00:30]} 42. Kf2 {[%emt 0:00:30]} e4 {[%emt 0:00:30] ( -> ...Rh1)} 43. Rg1 {[%emt 0:00:30]} Rh2+ {[%emt 0:00:30]} 44. Kg3 {[%emt 0:00:00]} Rh1 {[%emt 0:00:00]} 45. Rxh1 {[%emt 0:00:00] Weighted Error Value: White=0.69/Black=0.28 (precise)} 0-1

[Event "TUR-ch U13-18 Open 2023"]
[Site "Antalya"]
[Date "2023.01.24"]
[Round "4"]
[White "Ilarslan, Can"]
[Black "Eroz, Enis"]
[Result "0-1"]
[ECO "B07"]
[WhiteElo "1618"]
[BlackElo "1827"]
[Annotator "NA RC COMBH"]
[PlyCount "63"]
[EventDate "2023.01.17"]
[EventType "swiss"]
[EventCountry "TUR"]
[SourceTitle "playchess.com"]
[Source "ChessBase"]
[SourceQuality "1"]
[TimeControl "5400+30"]

1. e4 {[%emt 0:01:00]} d6 {[%emt 0:01:00]} 2. d4 {[%emt 0:00:30]} Nf6 {[%emt 0:00:30]} 3. Bd3 {[%emt 0:00:30]} Nc6 {[%emt 0:02:30]} 4. Ne2 {[%emt 0:02:30]} e5 {[%emt 0:01:30]} 5. c3 {[%emt 0:01:30]} d5 {[%emt 0:00:30]} 6. Bg5 {[%emt 0:14:30]} (6. exd5 $11 Qxd5 7. O-O) 6... exd4 {[%emt 0:08:30]} 7. Nxd4 {[%emt 0:08:30]} Nxd4 {[%emt 0:05:30]} 8. cxd4 {[%emt 0:00:30]} dxe4 {[%emt 0:00:30]} 9. Bxe4 {[%emt 0:03:30]} Be7 {[%emt 0:01:30]} 10. Bc2 {[%emt 0:00:30]} Qd5 {[%emt 0:01:30]} 11. Bf4 $2 {[%emt 0:16:30]} (11. Be3 Qxg2 12. Kd2) 11... Qxg2 {[%emt 0:01:30]} 12. Rf1 {[%emt 0:00:30]} O-O {[%emt 0:06:30]} 13. Qd3 {[%emt 0:04:30]} Bh3 {[%emt 0:06:30]} 14. Nd2 {[%emt 0:02:30]} Qg4 {[%emt 0:00:00]} 15. Rh1 {[%emt 0:10:30]} Qxf4 {[%emt 0:03:00]} 16. Qxh3 {[%emt 0:00:30]} Rad8 {[%emt 0:01:30]} 17. O-O-O {[%emt 0:06:30]} Rxd4 {[%emt 0:00:30]} 18. a3 {[%emt 0:01:30]} Rfd8 {[%emt 0:00:30]} 19. Qc3 {[%emt 0:01:30]} Ng4 {[%emt 0:02:30]} 20. Rhg1 {[%emt 0:01:30]} Nxf2 {[%emt 0:02:30]} 21. Rde1 {[%emt 0:01:30]} Bf6 {[%emt 0:02:30]} 22. Re2 {[%emt 0:02:07]} g6 {[%emt 0:02:30]} 23. Qg3 {[%emt 0:05:25]} Qxg3 {[%emt 0:02:30]} 24. Rxg3 {[%emt 0:00:01]} Nd3+ {[%emt 0:00:30]} 25. Bxd3 {[%emt 0:00:30]} Rxd3 {[%emt 0:00:00]} 26. Rxd3 {[%emt 0:00:35]} Rxd3 {[%emt 0:00:00]} 27. Re8+ {[%emt 0:00:47]} Kg7 {[%emt 0:00:30]} 28. Ne4 {[%emt 0:00:08]} Bd4 {[%emt 0:00:30]} 29. Kc2 {[%emt 0:01:38]} Re3 {[%emt 0:00:30]} 30. Kd2 {[%emt 0:00:11]} g5 $19 {[%emt 0:02:30]} 31. h3 {[%emt 0:01:04]} h5 {[%emt 0:00:30]} 32. Re7 {[%emt 0:01:32]} 0-1

[Event "TUR-ch U13-18 Open 2023"]
[Site "Antalya"]
[Date "2023.01.24"]
[Round "4"]
[White "Tezcan, Alper"]
[Black "Yerli, Hasan"]
[Result "1-0"]
[ECO "B40"]
[WhiteElo "1568"]
[BlackElo "1510"]
[Annotator "NA RC COMBH"]
[PlyCount "53"]
[EventDate "2023.01.17"]
[EventType "swiss"]
[EventCountry "TUR"]
[SourceTitle "playchess.com"]
[Source "ChessBase"]
[SourceQuality "1"]
[TimeControl "5400+30"]

1. e4 {[%emt 0:02:00]} c5 {[%emt 0:01:00]} 2. Nf3 {[%emt 0:00:30]} e6 {[%emt 0:00:30]} 3. d4 {[%emt 0:00:00]} cxd4 {[%emt 0:00:00]} 4. Nxd4 {[%emt 0:00:00]} Qb6 {[%emt 0:00:00]} 5. Nb3 {[%emt 0:00:30]} Qc7 {[%emt 0:00:00]} 6. g3 {[%emt 0:00:00]} a6 {[%emt 0:01:00]} 7. Bg2 {[%emt 0:01:00]} d6 {[%emt 0:03:30]} 8. O-O {[%emt 0:00:00]} Nd7 {[%emt 0:03:30]} 9. Nc3 {[%emt 0:02:00]} b5 {[%emt 0:00:30]} 10. a4 {[%emt 0:01:30]} bxa4 {[%emt 0:15:30]} 11. Rxa4 {[%emt 0:02:30]} Nc5 {[%emt 0:05:30]} 12. Nxc5 {[%emt 0:04:30]} Qxc5 {[%emt 0:04:30]} 13. Be3 {[%emt 0:02:30]} Qc7 {[%emt 0:01:30]} 14. Qd4 {[%emt 0:07:30]} Rb8 {[%emt 0:02:30]} 15. Rc4 {[%emt 0:02:30]} Qd8 {[%emt 0:06:30]} 16. Rd1 {[%emt 0:14:30]} e5 {[%emt 0:03:30]} 17. Qa7 {[%emt 0:02:30]} Be6 {[%emt 0:03:30]} 18. Rc7 {[%emt 0:03:30]} Nf6 {[%emt 0:11:30]} 19. Nd5 {[%emt 0:06:30]} Bxd5 {[%emt 0:04:30]} 20. exd5 {[%emt 0:00:30]} Rxb2 {[%emt 0:01:30]} 21. Bh3 {[%emt 0:00:30]} Rb8 {[%emt 0:04:30]} 22. Bb6 {[%emt 0:00:30]} g5 {[%emt 0:05:30]} 23. Bf5 {[%emt 0:01:30]} Rg8 {[%emt 0:07:09]} 24. Rb7 {[%emt 0:01:30]} Ra8 {[%emt 0:02:01]} 25. Bxd8 {[%emt 0:00:30]} Rxa7 {[%emt 0:00:30]} 26. Rxa7 {[%emt 0:00:30]} Kxd8 {[%emt 0:00:30]} 27. Rb1 {[%emt 0:00:00]} 1-0

[Event "TUR-ch U13-18 Open 2023"]
[Site "Antalya"]
[Date "2023.01.24"]
[Round "4"]
[White "Manas, Eren"]
[Black "Ozgun, Yigit Deniz"]
[Result "1/2-1/2"]
[ECO "B45"]
[WhiteElo "1535"]
[BlackElo "1769"]
[Annotator "NA RC COMBH"]
[PlyCount "215"]
[EventDate "2023.01.17"]
[EventType "swiss"]
[EventCountry "TUR"]
[SourceTitle "playchess.com"]
[Source "ChessBase"]
[SourceQuality "1"]
[TimeControl "5400+30"]

1. e4 {[%emt 0:01:00]} c5 {[%emt 0:01:00]} 2. Nf3 {[%emt 0:00:30]} Nc6 {[%emt 0:00:30]} 3. d4 {[%emt 0:00:30]} cxd4 {[%emt 0:00:00]} 4. Nxd4 {[%emt 0:00:00]} Nf6 {[%emt 0:00:00]} 5. Nc3 {[%emt 0:00:00]} e6 {[%emt 0:00:00]} 6. g3 {[%emt 0:00:30]} Bb4 {[%emt 0:00:00]} 7. Bg2 {[%emt 0:00:30]} O-O {[%emt 0:00:30]} 8. O-O {[%emt 0:00:30]} d6 {[%emt 0:00:00]} 9. Nce2 {[%emt 0:09:30]} a6 {[%emt 0:02:00]} 10. c4 {[%emt 0:02:30]} e5 {[%emt 0:02:30]} 11. Nc2 {[%emt 0:01:30]} Bc5 {[%emt 0:00:00]} 12. h3 {[%emt 0:00:30]} Be6 {[%emt 0:01:00]} 13. b3 {[%emt 0:01:30]} b5 {[%emt 0:02:30]} 14. cxb5 {[%emt 0:02:30]} axb5 {[%emt 0:01:30]} 15. Be3 {[%emt 0:00:30]} Qb6 {[%emt 0:03:30]} 16. Nc3 {[%emt 0:13:30]} Rfd8 {[%emt 0:02:30]} 17. Nd5 {[%emt 0:05:30]} Bxd5 {[%emt 0:01:30]} 18. exd5 {[%emt 0:00:30]} Nb8 {[%emt 0:02:30]} 19. Bg5 {[%emt 0:01:30]} Nbd7 {[%emt 0:08:30]} 20. b4 {[%emt 0:04:30]} Bd4 {[%emt 0:00:30]} 21. Nxd4 {[%emt 0:00:30]} exd4 {[%emt 0:00:00]} 22. Qb3 {[%emt 0:02:30]} h6 {[%emt 0:01:00]} 23. Bxf6 {[%emt 0:01:30]} Nxf6 {[%emt 0:00:00]} 24. Rfc1 {[%emt 0:02:30]} Qa7 {[%emt 0:02:00]} 25. Qd3 {[%emt 0:03:30]} Rab8 {[%emt 0:05:30]} 26. Rc6 {[%emt 0:04:30]} Kf8 {[%emt 0:04:30]} 27. a3 {[%emt 0:08:30]} Kg8 {[%emt 0:02:30]} 28. Kh2 {[%emt 0:01:30]} Kf8 {[%emt 0:03:30]} 29. Rac1 {[%emt 0:08:30]} Ra8 {[%emt 0:00:30]} 30. Qxb5 {[%emt 0:02:30]} Qxa3 {[%emt 0:00:30]} 31. Qc4 {[%emt 0:01:30]} Rab8 {[%emt 0:00:30]} 32. b5 {[%emt 0:01:30]} Qb2 {[%emt 0:01:30]} 33. Rc2 {[%emt 0:02:11]} Qxb5 {[%emt 0:00:30]} 34. Qxd4 {[%emt 0:00:00]} Kg8 {[%emt 0:04:30]} 35. Ra2 {[%emt 0:04:50]} Rb7 {[%emt 0:02:30]} 36. Raa6 {[%emt 0:01:25]} Ne8 {[%emt 0:01:30]} 37. Qh4 {[%emt 0:01:37]} Rbb8 {[%emt 0:00:30]} 38. Ra7 {[%emt 0:02:20]} Nf6 {[%emt 0:01:30]} 39. Qf4 {[%emt 0:01:47]} Qb4 {[%emt 0:00:00]} 40. Rc4 {[%emt 0:01:55]} Qb6 {[%emt 0:01:00]} 41. Rcc7 {[%emt 0:00:08]} Rf8 {[%emt 0:00:30]} 42. g4 {[%emt 0:03:19]} Qb4 {[%emt 0:00:30]} 43. Qf3 {[%emt 0:01:09]} Qd4 {[%emt 0:00:30]} 44. Re7 {[%emt 0:01:09]} Rb2 {[%emt 0:00:30]} 45. Qe3 {[%emt 0:01:08]} Qxe3 {[%emt 0:00:30]} 46. Rxe3 {[%emt 0:01:01]} Rxf2 {[%emt 0:00:00]} 47. Kg3 {[%emt 0:00:48]} Rd2 {[%emt 0:00:00]} 48. Ree7 {[%emt 0:00:30]} Rd4 {[%emt 0:00:30]} 49. Bf3 {[%emt 0:00:30]} Rd3 {[%emt 0:00:30]} 50. Kf2 {[%emt 0:00:30]} Nxd5 {[%emt 0:00:30]} 51. Bxd5 {[%emt 0:00:30]} Rxd5 {[%emt 0:00:30]} 52. Rad7 {[%emt 0:00:30]} Rd3 {[%emt 0:00:30]} 53. h4 {[%emt 0:00:30]} Rd4 {[%emt 0:00:30]} 54. Kg3 {[%emt 0:00:30]} d5 {[%emt 0:00:30]} 55. g5 {[%emt 0:00:30]} hxg5 {[%emt 0:00:30]} 56. hxg5 {[%emt 0:00:30]} g6 {[%emt 0:00:30]} 57. Re5 {[%emt 0:01:43]} Ra8 {[%emt 0:07:30]} 58. Rdxd5 {[%emt 0:00:30]} Ra3+ {[%emt 0:00:00]} 59. Kf2 {[%emt 0:00:21]} Rf4+ {[%emt 0:00:00]} 60. Kg2 {[%emt 0:00:33]} Rg4+ {[%emt 0:00:30]} 61. Kf2 {[%emt 0:00:30]} Kg7 {[%emt 0:00:30]} 62. Re3 {[%emt 0:00:10]} Rf4+ {[%emt 0:00:30]} 63. Kg3 {[%emt 0:01:08]} Raa4 {[%emt 0:00:30]} 64. Ree5 {[%emt 0:00:07]} Rfb4 {[%emt 0:00:30]} 65. Kf3 {[%emt 0:00:21]} Ra1 {[%emt 0:00:30]} 66. Rb5 {[%emt 0:01:17]} Rh4 {[%emt 0:00:30]} 67. Kg3 {[%emt 0:00:00]} Rhh1 {[%emt 0:00:00]} 68. Kf3 {[%emt 0:01:10]} Rhg1 {[%emt 0:00:00]} 69. Rbd5 {[%emt 0:00:05]} Raf1+ {[%emt 0:00:30]} 70. Ke2 {[%emt 0:00:41]} Rf4 {[%emt 0:00:30]} 71. Ke3 {[%emt 0:00:38]} Rgf1 {[%emt 0:00:30]} 72. Re4 {[%emt 0:00:51]} Rf5 {[%emt 0:01:30]} 73. Rxf5 {[%emt 0:00:30]} Rxf5 {[%emt 0:00:30]} 74. Rg4 {[%emt 0:00:26]} Kf8 {[%emt 0:00:30]} 75. Ke4 {[%emt 0:00:30]} Ke7 {[%emt 0:00:00]} 76. Rg3 {[%emt 0:00:03]} Ke6 {[%emt 0:00:00]} 77. Rg4 {[%emt 0:00:00]} Ra5 {[%emt 0:01:30]} 78. Rg1 {[%emt 0:00:52]} Ra4+ {[%emt 0:00:00]} 79. Ke3 {[%emt 0:00:43]} Ke5 {[%emt 0:00:00]} 80. Rb1 {[%emt 0:01:20]} Ra3+ {[%emt 0:00:30]} 81. Ke2 {[%emt 0:00:11]} Ra7 {[%emt 0:00:30]} 82. Rf1 {[%emt 0:00:24]} Ke6 {[%emt 0:02:30]} 83. Rf6+ {[%emt 0:00:35]} Ke7 {[%emt 0:00:30]} 84. Kf3 {[%emt 0:00:11]} Ra1 {[%emt 0:00:30]} 85. Rb6 {[%emt 0:00:30]} Ra4 {[%emt 0:00:30]} 86. Kg3 {[%emt 0:00:30]} Re4 {[%emt 0:00:00]} 87. Kf3 {[%emt 0:00:00]} Re5 {[%emt 0:00:00]} 88. Kf4 {[%emt 0:00:28]} Rf5+ {[%emt 0:00:30]} 89. Kg4 {[%emt 0:00:30]} Kd7 {[%emt 0:00:00]} 90. Ra6 {[%emt 0:00:00]} Kc7 {[%emt 0:00:00]} 91. Kh4 {[%emt 0:00:01]} Kd7 {[%emt 0:00:00]} 92. Kg4 {[%emt 0:00:30]} Rb5 {[%emt 0:00:00]} 93. Kf4 {[%emt 0:00:00]} Rd5 {[%emt 0:00:30]} 94. Rb6 {[%emt 0:01:09]} Rd6 {[%emt 0:00:00]} 95. Rb7+ {[%emt 0:00:45]} Ke6 {[%emt 0:00:00]} 96. Rb4 {[%emt 0:00:02]} Rd1 {[%emt 0:00:30]} 97. Rb6+ {[%emt 0:00:41]} Ke7 {[%emt 0:00:30]} 98. Rb7+ {[%emt 0:00:30]} Kf8 {[%emt 0:00:00]} 99. Ra7 {[%emt 0:00:00]} Rh1 {[%emt 0:00:00]} 100. Kg4 {[%emt 0:00:30]} Rb1 {[%emt 0:00:30]} 101. Kf4 {[%emt 0:00:10]} Rb4+ {[%emt 0:00:30]} 102. Kf3 {[%emt 0:00:30]} Rb5 {[%emt 0:00:00]} 103. Kg4 {[%emt 0:00:00]} Re5 {[%emt 0:00:00]} 104. Kf4 {[%emt 0:00:23]} Re7 {[%emt 0:00:00]} 105. Ra8+ {[%emt 0:00:13]} Kg7 {[%emt 0:00:00]} 106. Ra6 {[%emt 0:00:30]} Rb7 {[%emt 0:00:30]} 107. Rc6 {[%emt 0:00:00]} Re7 {[%emt 0:00:00]} 108. Ra6 {[%emt 0:00:08]} 1/2-1/2